fUSD/lending_fUSD_20250708
["ID","MTS","AMOUNT","RATE_DAILY","PERIOD"]
[370342706,1751970654803,-460.0,0.00027976,3]
[370342707,1751970654813,-460.0,0.00027976,3]
[370342708,1751970654823,-570.95604961,0.00027976,3]
[370342709,1751970654832,-460.0,0.00027976,3]
[370342710,1751970654842,-460.0,0.00027976,3]
[370342711,1751970654851,-460.0,0.00027976,3]
[370342712,1751970654861,-460.0,0.00027976,3]
[370342713,1751970654870,-460.0,0.00027976,3]
[370342714,1751970654879,-460.0,0.00027976,3]
[370342715,1751970654889,-460.0,0.00027976,3]
[370342716,1751970654899,-460.0,0.00027976,3]
[370342717,1751970654909,-460.0,0.00027976,3]
[370342718,1751970654918,-460.0,0.00027976,3]
[370342719,1751970654928,-460.0,0.00027976,3]
[370342720,1751970654938,-460.0,0.00027976,3]
[370342721,1751970654947,-460.0,0.00027976,3]
[370342722,1751970654956,-460.0,0.00027976,3]
[370342723,1751970654966,-460.0,0.00027976,3]
[370342724,1751970654976,-460.0,0.00027976,3]
[370342725,1751970654986,-460.0,0.00027976,3]
[370342726,1751970654996,-460.0,0.00027976,3]
[370342727,1751970655006,-460.0,0.00027976,3]
[370342728,1751970655016,-460.0,0.00027976,3]
[370342729,1751970655026,-460.0,0.00027976,3]
[370342730,1751970655036,-460.0,0.00027976,3]
[370342731,1751970655047,-460.0,0.00027976,3]
[370342732,1751970655056,-151.0,0.00027976,7]
[370342733,1751970655066,-151.0,0.00027976,7]
[370342734,1751970655076,-151.0,0.00027976,7]
[370342735,1751970655085,-460.0,0.00027976,3]
[370342736,1751970655096,-151.0,0.00027976,7]
[370342737,1751970655106,-151.0,0.00027976,7]
[370342738,1751970655115,-151.0,0.00027976,7]
[370342739,1751970655126,-460.0,0.00027976,3]
[370342740,1751970655137,-304.70563021,0.00027976,3]
[370342741,1751970655147,-460.0,0.00027976,3]
[370342742,1751970655156,-460.0,0.00027976,3]
[370342743,1751970655166,-460.30556371,0.00027976,3]
[370342744,1751970655178,-460.0,0.00027976,3]
[370342745,1751970655187,-512.87,0.00027976,3]
[370342746,1751970655198,-460.0,0.00027976,3]
[370342747,1751970655208,-460.0,0.00027976,3]
[370342748,1751970655218,-460.0,0.00027976,3]
[370342749,1751970655228,-460.0,0.00027976,3]
[370342750,1751970655238,-491.19825185,0.00027976,3]
[370342751,1751970655248,-460.0,0.00027976,3]
[370342752,1751970655258,-460.0,0.00027976,3]
[370342753,1751970655268,-460.0,0.00027976,3]
[370342754,1751970655277,-460.0,0.00027976,3]
[370342755,1751970655288,-460.0,0.00027976,3]
[370342756,1751970655298,-460.0,0.00027976,3]
[370342757,1751970655311,-380.26209,0.00027976,7]
[370342758,1751970655322,-460.0,0.00027976,3]
[370342759,1751970655336,-380.26209,0.00027976,7]
[370342760,1751970655346,-460.0,0.00027976,3]
[370342761,1751970655355,-460.0,0.00027976,3]
[370342762,1751970655365,-460.0,0.00027976,3]
[370342763,1751970655376,-1149.803173,0.00027976,7]
[370342764,1751970655385,-347.207309,0.00027976,7]
[370342765,1751970655395,-460.0,0.00027976,3]
[370342766,1751970655406,-1149.803173,0.00027976,7]
[370342767,1751970655417,-460.0,0.00027976,3]
[370342768,1751970655427,-460.0,0.00027976,3]
[370342769,1751970655437,-493.46,0.00027976,3]
[370342770,1751970655447,-460.0,0.00027976,3]
[370342771,1751970655457,-347.207309,0.00027976,7]
[370342772,1751970655466,-553.31445955,0.00027976,3]
[370342773,1751970655476,-460.0,0.00027976,3]
[370342774,1751970655486,-460.0,0.00027976,3]
[370342775,1751970655495,-460.0,0.00027976,3]
[370342776,1751970655700,-460.0,0.00027976,3]
[370342777,1751970655710,-460.0,0.00027976,3]
[370342778,1751970655720,-460.0,0.00027976,3]
[370342779,1751970655730,-460.0,0.00027976,3]
[370342780,1751970655739,-460.0,0.00027976,3]
[370342781,1751970655748,-460.0,0.00027976,3]
[370342782,1751970655757,-460.0,0.00027976,3]
[370342783,1751970655767,-460.0,0.00027976,3]
[370342784,1751970655776,-462.54,0.00027976,3]
[370342785,1751970655786,-460.0,0.00027976,3]
[370342786,1751970655795,-460.0,0.00027976,3]
[370342787,1751970655805,-460.0,0.00027976,3]
[370342788,1751970655814,-460.0,0.00027976,3]
[370342789,1751970655824,-460.0,0.00027976,3]
[370342790,1751970655833,-460.0,0.00027976,3]
[370342791,1751970655843,-460.0,0.00027976,3]
[370342792,1751970655852,-460.0,0.00027976,3]
[370342793,1751970655862,-460.0,0.00027976,3]
[370342794,1751970655872,-460.0,0.00027976,3]
[370342795,1751970655882,-460.0,0.00027976,3]
[370342796,1751970655892,-460.0,0.00027976,3]
[370342797,1751970655901,-460.0,0.00027976,3]
[370342798,1751970655911,-460.0,0.00027976,3]
[370342799,1751970655920,-460.0,0.00027976,3]
[370342800,1751970655930,-151.0,0.00027976,7]
[370342801,1751970655939,-151.0,0.00027976,7]
[370342802,1751970655948,-460.0,0.00027976,3]
[370342803,1751970655957,-151.0,0.00027976,7]
[370342804,1751970655967,-563.29,0.00027976,3]
[370342805,1751970655976,-460.0,0.00027976,3]
[370342806,1751970655988,-460.0,0.00027976,2]
[370342807,1751970655999,-3302.392319,0.00027976,7]
[370342808,1751970656009,-3302.392319,0.00027976,7]
[370342809,1751970656022,-151.0,0.00027976,7]
[370342810,1751970656033,-3302.392319,0.00027976,7]
[370342811,1751970656043,-152.107399,0.00027976,7]
[370342812,1751970656053,-460.0,0.00027976,3]
[370342813,1751970656063,-460.0,0.00027976,3]
[370342814,1751970656073,-460.0,0.00027976,3]
[370342815,1751970656082,-3302.392319,0.00027976,7]
[370342816,1751970656092,-3302.392319,0.00027976,7]
[370342817,1751970656101,-3302.392319,0.00027976,7]
[370342818,1751970656111,-460.0,0.00027976,3]
[370342819,1751970656120,-497.80553971,0.00027976,3]
[370342820,1751970656130,-460.0,0.00027976,3]
[370342821,1751970656139,-460.0,0.00027976,3]
[370342822,1751970656149,-460.0,0.00027976,3]
[370342823,1751970656159,-460.0,0.00027976,3]
[370342824,1751970656168,-460.0,0.00027976,3]
[370342825,1751970656179,-460.0,0.00027976,3]
[370342826,1751970656188,-498.76,0.00027976,3]
[370342827,1751970656198,-460.0,0.00027976,3]
[370342828,1751970656208,-151.0,0.00027976,7]
[370342829,1751970656217,-460.0,0.00027976,3]
[370342830,1751970656227,-664.76,0.00027976,3]
[370342831,1751970656237,-460.0,0.00027976,3]
[370342832,1751970656246,-460.0,0.00027976,3]
[370342833,1751970656255,-976.57,0.00027976,3]
[370342834,1751970656265,-460.0,0.00027976,3]
[370342835,1751970656274,-460.0,0.00027976,3]
[370342836,1751970656283,-460.0,0.00027976,3]
[370342837,1751970656293,-460.0,0.00027976,3]
[370342838,1751970656303,-337.03171349,0.00027976,3]
[370342839,1751970656312,-623.56,0.00027976,3]
[370342840,1751970656322,-460.0,0.00027976,3]
[370342841,1751970656334,-460.0,0.00027976,3]
[370342842,1751970656344,-460.0,0.00027976,3]
[370342843,1751970656354,-1156.78,0.00027976,3]
[370342844,1751970656363,-154.924471,0.00027976,7]
[370342845,1751970656373,-460.0,0.00027976,3]
[370342846,1751970656383,-460.0,0.00027976,3]
[370342847,1751970656393,-460.0,0.00027976,3]
[370342848,1751970656403,-460.0,0.00027976,3]
[370342849,1751970656415,-151.0,0.00027976,7]
[370342850,1751970656425,-151.0,0.00027976,7]
[370342851,1751970656434,-151.0,0.00027976,7]
[370342852,1751970656443,-151.0,0.00027976,7]
[370342853,1751970656452,-151.0,0.00027976,7]
[370342854,1751970656461,-151.0,0.00027976,7]
[370342855,1751970656471,-460.0,0.00027976,3]
[370342856,1751970656480,-460.0,0.00027976,3]
[370342857,1751970656489,-460.0,0.00027976,3]
[370342858,1751970656499,-1207.64,0.00027976,3]
[370342859,1751970656508,-460.0,0.00027976,3]
[370342860,1751970656517,-460.0,0.00027976,3]
[370342861,1751970656527,-552.28004384,0.00027976,3]
[370342862,1751970656536,-151.0,0.00027976,7]
[370342863,1751970656546,-151.0,0.00027976,7]
[370342864,1751970656555,-151.0,0.00027976,7]
[370342865,1751970656564,-460.0,0.00027976,3]
[370342866,1751970656574,-460.0,0.00027976,3]
[370342867,1751970656584,-460.0,0.00027976,3]
[370342868,1751970656594,-1297.34,0.00027976,3]
[370342869,1751970656603,-460.0,0.00027976,3]
[370342870,1751970656612,-460.0,0.00027976,3]
[370342871,1751970656622,-276.44501869,0.00027976,3]
[370342872,1751970656631,-460.0,0.00027976,3]
[370342873,1751970656640,-460.0,0.00027976,3]
[370342874,1751970656650,-460.0,0.00027976,3]
[370342875,1751970656659,-460.0,0.00027976,3]
[370342876,1751970656668,-460.0,0.00027976,3]
[370342877,1751970656678,-460.0,0.00027976,3]
[370342878,1751970656687,-1312.3,0.00027976,3]
[370342879,1751970656697,-460.0,0.00027976,3]
[370342880,1751970656706,-460.0,0.00027976,3]
[370342881,1751970656716,-460.0,0.00027976,3]
[370342882,1751970656725,-490.0,0.00027976,3]
[370342883,1751970656735,-460.0,0.00027976,3]
[370342884,1751970656744,-151.0,0.00027976,7]
[370342885,1751970656753,-363.138823,0.00027976,7]
[370342886,1751970656763,-151.0,0.00027976,7]
[370342887,1751970656772,-363.138823,0.00027976,7]
[370342888,1751970656781,-151.0,0.00027976,7]
[370342889,1751970656791,-460.0,0.00027976,3]
[370342890,1751970656801,-363.138823,0.00027976,7]
[370342891,1751970656810,-460.0,0.00027976,3]
[370342892,1751970656819,-460.0,0.00027976,3]
[370342893,1751970656829,-460.0,0.00027976,3]
[370342894,1751970656839,-151.0,0.00027976,7]
[370342895,1751970656848,-363.138823,0.00027976,7]
[370342896,1751970656857,-363.138823,0.00027976,7]
[370342897,1751970656867,-363.138823,0.00027976,7]
[370342898,1751970656876,-460.0,0.00027976,3]
[370342899,1751970656885,-1361.66,0.00027976,3]
[370342900,1751970656894,-1135.77,0.00027976,3]
[370342901,1751970656904,-460.0,0.00027976,3]
[370342902,1751970656913,-460.0,0.00027976,3]
[370342903,1751970656923,-151.0,0.00027976,7]
[370342904,1751970656932,-157.558876,0.00027976,7]
[370342905,1751970656941,-492.86011015,0.00027976,3]
[370342906,1751970656950,-151.0,0.00027976,7]
[370342907,1751970656959,-151.0,0.00027976,7]
[370342908,1751970656968,-460.0,0.00027976,3]
[370342909,1751970656977,-460.0,0.00027976,3]
[370342910,1751970656987,-151.0,0.00027976,7]
[370342911,1751970656997,-225.621348,0.00027976,7]
[370342912,1751970657006,-460.0,0.00027976,3]
[370342913,1751970657015,-589.405477,0.00027976,7]
[370342914,1751970657023,-225.621348,0.00027976,7]
[370342915,1751970657032,-460.0,0.00027976,3]
[370342916,1751970657041,-525.81,0.00027976,3]
[370342917,1751970657051,-589.405477,0.00027976,7]
[370342918,1751970657060,-460.0,0.00027976,3]
[370342919,1751970657069,-460.0,0.00027976,3]
[370342920,1751970657078,-460.0,0.00027976,3]
[370342921,1751970657088,-460.0,0.00027976,3]
[370342922,1751970657096,-460.0,0.00027976,3]
[370342923,1751970657106,-460.0,0.00027976,3]
[370342924,1751970657115,-1209.26,0.00027976,3]
[370342925,1751970657124,-151.0,0.00027976,7]
[370342926,1751970657132,-151.0,0.00027976,7]
[370342927,1751970657141,-282.103159,0.00027976,7]
[370342928,1751970657151,-460.0,0.00027976,3]
[370342929,1751970657160,-534.44,0.00027976,3]
[370342930,1751970657169,-460.0,0.00027976,3]
[370342931,1751970657178,-460.0,0.00027976,3]
[370342932,1751970657187,-808.12,0.00027976,3]
[370342933,1751970657196,-460.0,0.00027976,3]
[370342934,1751970657206,-460.0,0.00027976,3]
[370342935,1751970657215,-460.0,0.00027976,3]
[370342936,1751970657225,-460.0,0.00027976,3]
[370342937,1751970657234,-460.0,0.00027976,3]
[370342938,1751970657244,-515.18,0.00027976,3]
[370342939,1751970657253,-1271.67,0.00027976,3]
[370342940,1751970657262,-460.0,0.00027976,3]
[370342941,1751970657271,-460.0,0.00027976,3]
[370342942,1751970657281,-460.0,0.00027976,3]
[370342943,1751970657290,-460.0,0.00027976,3]
[370342944,1751970657300,-460.0,0.00027976,3]
[370342945,1751970657309,-460.0,0.00027976,3]
[370342946,1751970657318,-460.0,0.00027976,3]
[370342947,1751970657329,-498.48,0.00027976,3]
[370342948,1751970657339,-661.8,0.00027976,3]
[370342949,1751970657348,-460.0,0.00027976,3]
[370342950,1751970657358,-151.0,0.00027976,7]
[370342951,1751970657368,-460.0,0.00027976,3]
[370342952,1751970657378,-460.0,0.00027976,3]
[370342953,1751970657387,-584.06,0.00027976,3]
[370342954,1751970657396,-1490.97,0.00027976,3]
[370342955,1751970657407,-460.0,0.00027976,3]
[370342956,1751970657416,-460.0,0.00027976,3]
[370342957,1751970657425,-460.0,0.00027976,3]
[370342958,1751970657435,-460.0,0.00027976,3]
[370342959,1751970657444,-460.0,0.00027976,3]
[370342960,1751970657454,-460.0,0.00027976,3]
[370342961,1751970657463,-460.0,0.00027976,3]
[370342962,1751970657473,-502.42,0.00027976,3]
[370342963,1751970657483,-1003.23,0.00027976,3]
[370342964,1751970657493,-687.54,0.00027976,3]
[370342965,1751970657502,-460.0,0.00027976,3]
[370342966,1751970657512,-460.0,0.00027976,3]
[370342967,1751970657521,-460.0,0.00027976,3]
[370342968,1751970657530,-460.0,0.00027976,3]
[370342969,1751970657540,-1041.85,0.00027976,3]
[370342970,1751970657549,-460.0,0.00027976,3]
[370342971,1751970657558,-1201.76,0.00027976,3]
[370342972,1751970657567,-576.1,0.00027976,3]
[370342973,1751970657576,-496.99,0.00027976,3]
[370342974,1751970657585,-571.96,0.00027976,3]
[370342975,1751970657595,-460.0,0.00027976,3]
[370342976,1751970657604,-857.99,0.00027976,3]
[370342977,1751970657613,-460.0,0.00027976,3]
[370342978,1751970657622,-485.71201504,0.00027976,3]
[370342979,1751970657632,-460.0,0.00027976,3]
[370342980,1751970657641,-460.0,0.00027976,3]
[370342981,1751970657651,-460.0,0.00027976,3]
[370342982,1751970657660,-151.0,0.00027976,7]
[370342983,1751970657670,-151.0,0.00027976,7]
[370342984,1751970657679,-151.0,0.00027976,7]
[370342985,1751970657688,-460.0,0.00027976,3]
[370342986,1751970657698,-311.77895284,0.00027976,3]
[370342987,1751970657707,-460.0,0.00027976,3]
[370342988,1751970657716,-460.0,0.00027976,3]
[370342989,1751970657726,-460.0,0.00027976,3]
[370342990,1751970657736,-151.0,0.00027976,7]
[370342991,1751970657745,-151.0,0.00027976,7]
[370342992,1751970657754,-460.0,0.00027976,3]
[370342993,1751970657763,-151.0,0.00027976,7]
[370342994,1751970657773,-460.0,0.00027976,3]
[370342995,1751970657782,-460.0,0.00027976,3]
[370342996,1751970657791,-460.0,0.00027976,3]
[370342997,1751970657800,-460.0,0.00027976,3]
[370342998,1751970657810,-460.0,0.00027976,3]
[370342999,1751970657819,-460.0,0.00027976,3]
[370343000,1751970657828,-460.0,0.00027976,3]
[370343001,1751970657838,-992.064108,0.00027976,7]
[370343002,1751970657847,-992.064108,0.00027976,7]
[370343003,1751970657858,-992.064108,0.00027976,7]
[370343004,1751970657867,-460.0,0.00027976,3]
[370343005,1751970657876,-460.0,0.00027976,3]
[370343006,1751970657885,-460.0,0.00027976,3]
[370343007,1751970657895,-992.064108,0.00027976,7]
[370343008,1751970657904,-992.064108,0.00027976,7]
[370343009,1751970657913,-992.064108,0.00027976,7]
[370343010,1751970657925,-460.0,0.00027976,3]
[370343011,1751970657935,-460.0,0.00027976,3]
[370343012,1751970657944,-580.88,0.00027976,3]
[370343013,1751970657956,-653.92,0.00027976,3]
[370343014,1751970657968,-460.0,0.00027976,3]
[370343015,1751970657978,-151.0,0.00027976,7]
[370343016,1751970657988,-151.0,0.00027976,7]
[370343017,1751970657998,-287.137428,0.00027976,7]
[370343018,1751970658007,-500.0,0.00027976,3]
[370343019,1751970658016,-460.0,0.00027976,3]
[370343020,1751970658025,-489.33,0.00027976,3]
[370343021,1751970658035,-1111.06,0.00027976,3]
[370343022,1751970658044,-887.93,0.00027976,3]
[370343023,1751970658053,-460.0,0.00027976,3]
[370343024,1751970658062,-503.23,0.00027976,3]
[370343025,1751970658071,-566.75,0.00027976,3]
[370343026,1751970658080,-460.0,0.00027976,3]
[370343027,1751970658089,-460.0,0.00027976,3]
[370343028,1751970658098,-524.22,0.00027976,3]
[370343029,1751970658107,-521.46,0.00027976,3]
[370343030,1751970658116,-460.0,0.00027976,3]
[370343031,1751970658125,-460.0,0.00027976,3]
[370343032,1751970658135,-541.4,0.00027976,3]
[370343033,1751970658144,-460.0,0.00027976,3]
[370343034,1751970658153,-880.96,0.00027976,3]
[370343035,1751970658163,-460.0,0.00027976,3]
[370343036,1751970658174,-460.0,0.00027976,3]
[370343037,1751970658183,-460.0,0.00027976,3]
[370343038,1751970658192,-460.0,0.00027976,3]
[370343039,1751970658201,-968.01,0.00027976,3]
[370343040,1751970658210,-460.0,0.00027976,3]
[370343041,1751970658219,-708.69,0.00027976,3]
[370343042,1751970658229,-460.0,0.00027976,3]
[370343043,1751970658239,-460.0,0.00027976,3]
[370343044,1751970658249,-497.59,0.00027976,3]
[370343045,1751970658260,-151.0,0.00027976,7]
[370343046,1751970658269,-151.0,0.00027976,7]
[370343047,1751970658279,-151.0,0.00027976,7]
[370343048,1751970658289,-769.67,0.00027976,3]
[370343049,1751970658298,-460.0,0.00027976,3]
[370343050,1751970658309,-628.05,0.00027976,3]
[370343051,1751970658319,-460.0,0.00027976,3]
[370343052,1751970658332,-151.0,0.00027976,7]
[370343053,1751970658343,-460.0,0.00027976,3]
[370343054,1751970658353,-151.0,0.00027976,7]
[370343055,1751970658364,-151.0,0.00027976,7]
[370343056,1751970658375,-594.47984954,0.00027976,3]
[370343057,1751970658385,-460.0,0.00027976,3]
[370343058,1751970658395,-151.0,0.00027976,7]
[370343059,1751970658406,-460.0,0.00027976,3]
[370343060,1751970658415,-151.0,0.00027976,7]
[370343061,1751970658425,-645.02,0.00027976,3]
[370343062,1751970658434,-151.0,0.00027976,7]
[370343063,1751970658443,-151.0,0.00027976,7]
[370343064,1751970658454,-614.37,0.00027976,3]
[370343065,1751970658465,-501.15,0.00027976,3]
[370343066,1751970658475,-460.0,0.00027976,3]
[370343067,1751970658484,-460.0,0.00027976,3]
[370343068,1751970658494,-460.0,0.00027976,3]
[370343069,1751970658503,-460.0,0.00027976,3]
[370343070,1751970658512,-460.0,0.00027976,3]
[370343071,1751970658522,-527.65,0.00027976,3]
[370343072,1751970658531,-151.0,0.00027976,7]
[370343073,1751970658540,-151.0,0.00027976,7]
[370343074,1751970658550,-151.0,0.00027976,7]
[370343075,1751970658559,-460.0,0.00027976,3]
[370343076,1751970658568,-460.0,0.00027976,3]
[370343077,1751970658578,-460.0,0.00027976,3]
[370343078,1751970658587,-1635.72,0.00027976,3]
[370343079,1751970658596,-208.218645,0.00027976,7]
[370343080,1751970658605,-208.218645,0.00027976,7]
[370343081,1751970658614,-208.218645,0.00027976,7]
[370343082,1751970658624,-460.0,0.00027976,3]
[370343083,1751970658633,-460.0,0.00027976,3]
[370343084,1751970658642,-460.0,0.00027976,3]
[370343085,1751970658651,-208.218645,0.00027976,7]
[370343086,1751970658660,-208.218645,0.00027976,7]
[370343087,1751970658670,-208.218645,0.00027976,7]
[370343088,1751970658679,-460.0,0.00027976,3]
[370343089,1751970658688,-460.0,0.00027976,3]
[370343090,1751970658697,-460.0,0.00027976,3]
[370343091,1751970658707,-500.4,0.00027976,3]
[370343092,1751970658716,-1127.83,0.00027976,3]
[370343093,1751970658725,-1074.76,0.00027976,3]
[370343094,1751970658735,-460.0,0.00027976,3]
[370343095,1751970658744,-460.0,0.00027976,3]
[370343096,1751970658753,-559.85,0.00027976,3]
[370343097,1751970658954,-612.63,0.00027976,3]
[370343098,1751970658963,-540.6,0.00027976,3]
[370343099,1751970658973,-510.29,0.00027976,3]
[370343100,1751970658982,-460.0,0.00027976,3]
[370343101,1751970658991,-460.0,0.00027976,3]
[370343102,1751970659000,-460.0,0.00027976,3]
[370343103,1751970659010,-629.48,0.00027976,3]
[370343104,1751970659019,-460.0,0.00027976,3]
[370343105,1751970659027,-460.0,0.00027976,3]
[370343106,1751970659036,-503.6198339,0.00027976,3]
[370343107,1751970659046,-528.64,0.00027976,3]
[370343108,1751970659055,-461.59749881,0.00027976,3]
[370343109,1751970659064,-380.55792395,0.00027976,3]
[370343110,1751970659075,-645.46,0.00027976,3]
[370343111,1751970659086,-698.11,0.00027976,3]
[370343112,1751970659096,-460.0,0.00027976,3]
[370343113,1751970659105,-460.0,0.00027976,3]
[370343114,1751970659116,-460.0,0.00027976,3]
[370343115,1751970659126,-300.0,0.00027976,3]
[370343116,1751970659136,-496.83,0.00027976,3]
[370343117,1751970659146,-126.36200238,0.00027976,3]
[370343118,1751970660822,-500.0,0.00027853,2]
[370343119,1751970660832,-400.0,0.00027853,2]
[370343120,1751970660858,-100.0,0.00027853,2]
[370343121,1751970660868,-182.49,0.00027853,2]
[370343122,1751970660883,-317.51,0.00027853,2]
[370343123,1751970660893,-82.49,0.00027853,2]
[370343124,1751970660904,-417.51,0.00027853,2]
[370343125,1751970660913,-280.19154701,0.00027853,2]
[370343126,1751970661151,-219.80845299,0.00027853,2]
[370343127,1751970661161,-500.0,0.00027853,2]
[370343128,1751970661170,-357.02542694,0.00027853,2]
[370343129,1751970661181,-142.97457306,0.00027853,2]
[370343130,1751970661190,-500.0,0.00027853,2]
[370343131,1751970661199,-500.0,0.00027853,2]
[370343132,1751970661208,-500.0,0.00027853,2]
[370343133,1751970661218,-500.0,0.00027853,2]
[370343134,1751970661227,-461.11553135,0.00027853,2]
[370343136,1751970795945,2036.664811,0.00030128,120]
[370343137,1751970806626,500.0,0.00030128,120]
[370343141,1751971404125,226.591726,0.00030135,120]
[370343142,1751971518956,1000.0,0.00030136,120]
[370343143,1751971588627,155.12,0.00013699,2]
[370343145,1751971684712,1000.0,0.00030136,120]
[370343153,1751971828300,2000.0,1.23e-06,120]
[370343160,1751971831537,-569.1809,0.0002,2]
[370343161,1751971831590,-400.14668015,0.0002,2]
[370343162,1751971831695,-2590.67241985,0.0002,2]
[370343163,1751971831706,-983.599799,0.00021492,2]
[370343164,1751971831716,-150.0,0.000216,2]
[370343165,1751971831727,-1200.0,0.00021905,2]
[370343166,1751971831739,-300.0,0.00021905,2]
[370343167,1751971831749,-828.0,0.00021906,2]
[370343168,1751971831759,-28049.21189496,0.00021906,2]
[370343169,1751971831768,-125046.04467236,0.00021907,2]
[370343170,1751971831780,-1631.60505877,0.00021907,2]
[370343171,1751971831790,-500.0,0.00022,2]
[370343172,1751971831799,-500.0,0.00022,2]
[370343173,1751971831808,-500.0,0.00022,2]
[370343174,1751971831817,-502.32457066,0.00022,2]
[370343175,1751971831829,-502.6015459,0.00022,2]
[370343176,1751971831838,-428.69430596,0.00022,2]
[370343177,1751971831848,-500.0,0.00022,2]
[370343178,1751971831857,-500.0,0.00022,2]
[370343179,1751971831868,-500.0,0.00022,2]
[370343180,1751971831879,-150.0,0.0002201,2]
[370343181,1751971831890,-150.0,0.0002243,2]
[370343182,1751971831899,-489.21601119,0.00022548,2]
[370343183,1751971831910,-500.0,0.00022548,2]
[370343184,1751971831920,-1000.0,0.00022548,2]
[370343185,1751971831931,-150.0,0.0002284,2]
[370343186,1751971831940,-814.45267291,0.000229,8]
[370343187,1751971831949,-1500.0,0.00023096,2]
[370343188,1751971831961,-230.0,0.0002326,2]
[370343190,1751971831971,-814.45267287,0.00023417,9]
[370343192,1751971831980,-2000.0,0.00023644,2]
[370343194,1751971831989,-1680.0,0.00023918,2]
[370343196,1751971831999,-814.45267287,0.00023934,10]
[370343198,1751971832008,-300.0,0.00023977,2]
[370343200,1751971832018,-155.08,0.0002414,2]
[370343202,1751971832028,-523.0,0.00024182,2]
[370343204,1751971832042,-512.0,0.00024182,2]
[370343206,1751971832051,-214.0,0.00024182,2]
[370343208,1751971832061,-2500.0,0.00024192,2]
[370343210,1751971832070,-814.45267287,0.00024452,11]
[370343212,1751971832080,-1602.78,0.00024481,2]
[370343214,1751971832090,-666.0,0.00024575,2]
[370343216,1751971832099,-460.09838317,0.00024617,2]
[370343218,1751971832108,-3300.95,0.00024629,2]
[370343220,1751971832119,-1009.96,0.00024629,2]
[370343222,1751971832128,-200.0,0.00024629,2]
[370343224,1751971832138,-5121.43,0.00024629,2]
[370343226,1751971832148,-5000.0,0.00024717,2]
[370343228,1751971832157,-2613.08120539,0.0002474,2]
[370343231,1751971832166,-460.09838307,0.00024788,2]
[370343233,1751971832176,-992.72,0.00024954,2]
[370343235,1751971832185,-460.09838307,0.00024959,2]
[370343237,1751971832195,-814.45267287,0.00024969,12]
[370343239,1751971832204,-1492.91777022,0.00025,3]
[370343241,1751971832213,-460.09838307,0.0002513,2]
[370343243,1751971832222,-181.67,0.00025138,2]
[370343245,1751971832232,-460.09838307,0.00025301,2]
[370343247,1751971832241,-1267.77,0.00025461,2]
[370343249,1751971832251,-1267.77,0.00025474,2]
[370343251,1751971832260,-814.45267287,0.00025486,13]
[370343253,1751971832269,-1267.77,0.00025487,2]
[370343255,1751971832279,-1267.77,0.00025501,2]
[370343257,1751971832288,-262.27,0.00025508,2]
[370343259,1751971832296,-1267.77,0.00025514,2]